fUST/lending_fUST_20250401
["ID","MTS","AMOUNT","RATE_DAILY","PERIOD"]
[356934928,1743439838816,-500.0,0.00019178,2]
[356934929,1743439838826,-500.0,0.00019178,2]
[356934930,1743439838836,-500.0,0.00019178,2]
[356934931,1743439838846,-500.0,0.00019178,2]
[356934932,1743439838856,-500.0,0.00019178,2]
[356934933,1743439838865,-500.0,0.00019178,2]
[356934934,1743439838875,-500.0,0.00019178,2]
[356934935,1743439838886,-751.15,0.00019178,2]
[356934936,1743439838895,-2278.7,0.00019178,2]
[356934937,1743439838906,-629.91,0.00019178,2]
[356934938,1743439838915,-500.0,0.00019178,2]
[356934939,1743439838925,-500.0,0.00019178,2]
[356934940,1743439838934,-500.0,0.00019178,2]
[356934941,1743439838943,-500.0,0.00019178,2]
[356934942,1743439838954,-500.0,0.00019178,2]
[356934943,1743439838966,-1931.74,0.00019178,2]
[356934944,1743439838975,-500.0,0.00019178,2]
[356934945,1743439838985,-525.53,0.00019178,2]
[356934946,1743439838994,-1408.56,0.00019178,2]
[356934947,1743439839006,-599.99,0.00019178,2]
[356934948,1743439839016,-3294.17,0.00019178,2]
[356934949,1743439839026,-826.29,0.00019178,2]
[356934950,1743439839038,-500.0,0.00019178,2]
[356934951,1743439839048,-500.0,0.00019178,2]
[356934952,1743439839058,-500.0,0.00019178,2]
[356934953,1743439839067,-505.97,0.00019178,2]
[356934954,1743439839076,-500.0,0.00019178,2]
[356934955,1743439839086,-614.04,0.00019178,2]
[356934956,1743439839096,-598.78,0.00019178,2]
[356934957,1743439839107,-500.0,0.00019178,2]
[356934958,1743439839116,-899.69,0.00019178,2]
[356934959,1743439839126,-1550.45,0.00019178,2]
[356934960,1743439839149,-746.5,0.00019178,2]
[356934961,1743439839159,-500.0,0.00019178,2]
[356934962,1743439839170,-160.0,0.00019183,2]
[356934963,1743439839179,-835.65699134,0.00019183,2]
[356934964,1743439839190,-418.85542,0.00019183,2]
[356934965,1743439839200,-160.0,0.00019183,2]
[356934966,1743439839211,-150.0,0.00019252,2]
[356934967,1743439839220,-542.0,0.00019252,2]
[356934968,1743439839231,-1915.0,0.00019252,2]
[356934969,1743439839241,-2259.0,0.00019252,2]
[356934970,1743439839251,-401.0,0.00019252,2]
[356934971,1743439839261,-3528.700625,0.00019272,3]
[356934972,1743439839270,-1212.05701,0.00019295,7]
[356934973,1743439839279,-317.58922147,0.00019393,2]
[356934974,1743439839289,-475.1847616,0.00019399,2]
[356934975,1743439839299,-500.0,0.00019452,2]
[356934976,1743439839308,-947.21,0.00019452,2]
[356934977,1743439839317,-500.0,0.00019452,2]
[356934978,1743439839326,-500.0,0.00019452,2]
[356934979,1743439839336,-500.0,0.00019452,2]
[356934980,1743439839346,-500.0,0.00019452,2]
[356934981,1743439839357,-500.0,0.00019452,2]
[356934982,1743439839367,-307.99259406,0.00019452,2]
[356934983,1743439839377,-500.0,0.00019452,2]
[356934984,1743439839387,-1527.6,0.00019452,2]
[356934985,1743439839397,-1097.56,0.00019452,2]
[356934986,1743439839407,-500.0,0.00019452,2]
[356934987,1743439839417,-774.81,0.00019452,2]
[356934988,1743439839427,-828.85,0.00019452,2]
[356934989,1743439839438,-500.0,0.00019452,2]
[356934990,1743439839450,-2162.42,0.00019452,2]
[356934991,1743439839464,-500.0,0.00019452,2]
[356934992,1743439839478,-500.0,0.00019452,2]
[356934993,1743439839487,-500.0,0.00019452,2]
[356934994,1743439839497,-500.0,0.00019452,2]
[356934995,1743439839507,-500.0,0.00019452,2]
[356934996,1743439839517,-500.0,0.00019452,2]
[356934997,1743439839527,-500.0,0.00019452,2]
[356934998,1743439839537,-500.0,0.00019452,2]
[356934999,1743439839547,-500.0,0.00019452,2]
[356935000,1743439839557,-751.15,0.00019452,2]
[356935001,1743439839568,-2278.7,0.00019452,2]
[356935002,1743439839578,-629.91,0.00019452,2]
[356935003,1743439839588,-500.0,0.00019452,2]
[356935004,1743439839599,-500.0,0.00019452,2]
[356935005,1743439839610,-500.0,0.00019452,2]
[356935006,1743439839620,-500.0,0.00019452,2]
[356935007,1743439839630,-500.0,0.00019452,2]
[356935008,1743439839640,-1931.74,0.00019452,2]
[356935009,1743439839650,-500.0,0.00019452,2]
[356935010,1743439839660,-525.53,0.00019452,2]
[356935011,1743439839670,-1408.56,0.00019452,2]
[356935012,1743439839680,-599.99,0.00019452,2]
[356935013,1743439839690,-3294.17,0.00019452,2]
[356935014,1743439839700,-826.29,0.00019452,2]
[356935015,1743439839710,-500.0,0.00019452,2]
[356935016,1743439839720,-500.0,0.00019452,2]
[356935017,1743439839731,-500.0,0.00019452,2]
[356935018,1743439839740,-505.97,0.00019452,2]
[356935019,1743439839754,-500.0,0.00019452,2]
[356935020,1743439839764,-598.78,0.00019452,2]
[356935021,1743439839775,-500.0,0.00019452,2]
[356935022,1743439839786,-899.69,0.00019452,2]
[356935023,1743439839796,-746.5,0.00019452,2]
[356935024,1743439839806,-1550.45,0.00019452,2]
[356935025,1743439839816,-600.32,0.000195,2]
[356935026,1743439839826,-500.0,0.00019561,2]
[356935027,1743439839836,-500.0,0.00019561,2]
[356935028,1743439839847,-500.0,0.00019561,2]
[356935029,1743439839857,-500.0,0.00019561,2]
[356935030,1743439839867,-500.0,0.00019561,2]
[356935031,1743439839877,-500.0,0.00019561,2]
[356935032,1743439839887,-500.0,0.00019561,2]
[356935033,1743439839897,-185.37419647,0.00019561,2]
[356935034,1743439839908,-500.0,0.00019561,2]
[356935035,1743439839918,-160.94124664,0.00019561,2]
[356935036,1743439839928,-500.0,0.00019561,2]
[356935037,1743439839937,-500.0,0.00019561,2]
[356935038,1743439839947,-500.0,0.00019561,2]
[356935039,1743439839960,-500.0,0.00019561,2]
[356935040,1743439839970,-500.0,0.00019561,2]
[356935041,1743439839981,-500.0,0.00019561,2]
[356935042,1743439839991,-500.0,0.00019561,2]
[356935043,1743439840003,-500.0,0.00019561,2]
[356935044,1743439840013,-251.98532181,0.00019561,2]
[356935045,1743439840023,-500.0,0.00019669,2]
[356935046,1743439840035,-500.0,0.00019669,2]
[356935047,1743439840046,-500.0,0.00019669,2]
[356935048,1743439840056,-500.0,0.00019676,2]
[356935049,1743439840067,-500.0,0.00019676,2]
[356935050,1743439840077,-509.76651028,0.00019676,2]
[356935052,1743439840087,-534.44279293,0.0001969,2]
[356935053,1743439840098,-491.78599485,0.0001969,2]
[356935054,1743439840108,-533.57146143,0.0001969,2]
[356935055,1743439840118,-500.0,0.0001969,2]
[356935056,1743439840128,-500.0,0.0001969,2]
[356935057,1743439840139,-420.0,0.00019693,2]
[356935058,1743439840150,-500.0,0.00019712,2]
[356935059,1743439840160,-500.0,0.00019712,2]
[356935060,1743439840169,-500.0,0.00019712,2]
[356935061,1743439840180,-253.03670208,0.00019712,2]
[356935062,1743439840190,-500.0,0.00019713,2]
[356935063,1743439840200,-3528.700625,0.00019722,3]
[356935064,1743439840213,-500.0,0.00019726,2]
[356935066,1743439840223,-947.21,0.00019726,2]
[356935067,1743439840233,-500.0,0.00019726,2]
[356935068,1743439840243,-500.0,0.00019726,2]
[356935069,1743439840253,-500.0,0.00019726,2]
[356935070,1743439840263,-500.0,0.00019726,2]
[356935071,1743439840273,-500.0,0.00019726,2]
[356935072,1743439840283,-500.0,0.00019726,2]
[356935074,1743439840293,-1527.6,0.00019726,2]
[356935075,1743439840303,-1097.56,0.00019726,2]
[356935076,1743439840313,-500.0,0.00019726,2]
[356935077,1743439840323,-774.81,0.00019726,2]
[356935078,1743439840333,-828.85,0.00019726,2]
[356935080,1743439840343,-500.0,0.00019726,2]
[356935081,1743439840353,-2162.42,0.00019726,2]
[356935082,1743439840364,-500.0,0.00019726,2]
[356935083,1743439840374,-500.0,0.00019726,2]
[356935084,1743439840385,-500.0,0.00019726,2]
[356935085,1743439840394,-500.0,0.00019726,2]
[356935087,1743439840404,-500.0,0.00019726,2]
[356935088,1743439840414,-500.0,0.00019726,2]
[356935089,1743439840424,-500.0,0.00019726,2]
[356935090,1743439840434,-500.0,0.00019726,2]
[356935091,1743439840444,-500.0,0.00019726,2]
[356935093,1743439840454,-751.15,0.00019726,2]
[356935094,1743439840464,-2278.7,0.00019726,2]
[356935095,1743439840474,-629.91,0.00019726,2]
[356935096,1743439840484,-500.0,0.00019726,2]
[356935097,1743439840494,-500.0,0.00019726,2]
[356935098,1743439840504,-500.0,0.00019726,2]
[356935099,1743439840514,-500.0,0.00019726,2]
[356935100,1743439840523,-500.0,0.00019726,2]
[356935101,1743439840533,-1931.74,0.00019726,2]
[356935102,1743439840544,-325.95956406,0.00019726,2]
[356935103,1743439840554,-525.53,0.00019726,2]
[356935105,1743439840564,-1408.56,0.00019726,2]
[356935107,1743439840574,-599.99,0.00019726,2]
[356935108,1743439840584,-3294.17,0.00019726,2]
[356935109,1743439840594,-826.29,0.00019726,2]
[356935110,1743439840604,-585.59087677,0.00019726,2]
[356935112,1743439840614,-500.0,0.00019726,2]
[356935114,1743439840623,-500.0,0.00019726,2]
[356935115,1743439840633,-505.97,0.00019726,2]
[356935117,1743439840644,-500.0,0.00019726,2]
[356935118,1743439840654,-598.78,0.00019726,2]
[356935119,1743439840664,-500.0,0.00019726,2]
[356935120,1743439840674,-899.69,0.00019726,2]
[356935121,1743439840684,-746.5,0.00019726,2]
[356935125,1743439840694,-1550.45,0.00019726,2]
[356935127,1743439840882,-500.0,0.00019727,2]
[356935128,1743439840893,-500.0,0.00019727,2]
[356935129,1743439840903,-500.0,0.00019754,2]
[356935130,1743439840913,-500.0,0.00019867,2]
[356935131,1743439840923,-2200.0,0.0001988,2]
[356935132,1743439840933,-511.007,0.0001988,2]
[356935133,1743439840942,-1308.45103799,0.000199,2]
[356935134,1743439840952,-160.0,0.00019965,2]
[356935135,1743439840965,-298.88059172,0.00019999,2]
[356935136,1743439840975,-273.68065965,0.0002,3]
[356935137,1743439840985,-500.0,0.0002,2]
[356935138,1743439840995,-947.21,0.0002,2]
[356935139,1743439841007,-595.0890691,0.0002,2]
[356935140,1743439841016,-500.0,0.0002,2]
[356935141,1743439841026,-500.0,0.0002,2]
[356935142,1743439841038,-500.0,0.0002,2]
[356935143,1743439841058,-374.70456929,0.0002,2]
[356935144,1743439841071,-500.0,0.0002,2]
[356935145,1743439841082,-1527.6,0.0002,2]
[356935146,1743439841092,-1097.56,0.0002,2]
[356935147,1743439841102,-500.0,0.0002,2]
[356935148,1743439841113,-774.81,0.0002,2]
[356935149,1743439841123,-828.85,0.0002,2]
[356935150,1743439841134,-500.0,0.0002,2]
[356935151,1743439841145,-2162.42,0.0002,2]
[356935152,1743439841160,-500.0,0.0002,2]
[356935153,1743439841171,-500.0,0.0002,2]
[356935154,1743439841182,-500.0,0.0002,2]
[356935155,1743439841192,-500.0,0.0002,2]
[356935156,1743439841202,-500.0,0.0002,2]
[356935157,1743439841213,-500.0,0.0002,2]
[356935158,1743439841223,-500.0,0.0002,2]
[356935159,1743439841235,-500.0,0.0002,2]
[356935160,1743439841245,-500.0,0.0002,2]
[356935161,1743439841257,-751.15,0.0002,2]
[356935162,1743439841268,-2278.7,0.0002,2]
[356935163,1743439841279,-629.91,0.0002,2]
[356935164,1743439841290,-500.0,0.0002,2]
[356935165,1743439841301,-500.0,0.0002,2]
[356935166,1743439841312,-500.0,0.0002,2]
[356935167,1743439841322,-500.0,0.0002,2]
[356935168,1743439841332,-500.0,0.0002,2]
[356935169,1743439841342,-1931.74,0.0002,2]
[356935170,1743439841354,-525.53,0.0002,2]
[356935171,1743439841365,-1408.56,0.0002,2]
[356935172,1743439841375,-599.99,0.0002,2]
[356935173,1743439841386,-25676.16245412,0.0002,2]
[356935174,1743439841396,-3294.17,0.0002,2]
[356935175,1743439841411,-826.29,0.0002,2]
[356935176,1743439841422,-500.0,0.0002,2]
[356935177,1743439841432,-500.0,0.0002,2]
[356935178,1743439841442,-505.97,0.0002,2]
[356935179,1743439841451,-500.0,0.0002,2]
[356935180,1743439841461,-598.78,0.0002,2]
[356935181,1743439841472,-500.0,0.0002,2]
[356935182,1743439841482,-899.69,0.0002,2]
[356935183,1743439841492,-746.5,0.0002,2]
[356935184,1743439841502,-1550.45,0.0002,2]
[356935185,1743439841513,-150.0,0.0002003,60]
[356935186,1743439841523,-3528.700625,0.00020049,2]
[356935187,1743439841534,-3528.700625,0.00020172,3]
[356935188,1743439841544,-160.0,0.00020172,3]
[356935189,1743439841555,-207.4,0.00020175,2]
[356935190,1743439841565,-500.0,0.00020273,2]
[356935191,1743439841576,-947.21,0.00020273,2]
[356935192,1743439841587,-500.0,0.00020273,2]
[356935193,1743439841597,-500.0,0.00020273,2]
[356935194,1743439841607,-500.0,0.00020273,2]
[356935195,1743439841618,-500.0,0.00020273,2]
[356935196,1743439841629,-1527.6,0.00020273,2]
[356935197,1743439841639,-1097.56,0.00020273,2]
[356935198,1743439841650,-500.0,0.00020273,2]
[356935199,1743439841665,-774.81,0.00020273,2]
[356935200,1743439841681,-828.85,0.00020273,2]
[356935201,1743439841691,-500.0,0.00020273,2]
[356935202,1743439841703,-2162.42,0.00020273,2]
[356935203,1743439841713,-500.0,0.00020273,2]
[356935204,1743439841723,-500.0,0.00020273,2]
[356935205,1743439841733,-500.0,0.00020273,2]
[356935206,1743439841744,-500.0,0.00020273,2]
[356935207,1743439841754,-500.0,0.00020273,2]
[356935208,1743439841764,-500.0,0.00020273,2]
[356935209,1743439841774,-500.0,0.00020273,2]
[356935210,1743439841785,-500.0,0.00020273,2]
[356935211,1743439841795,-500.0,0.00020273,2]
[356935212,1743439841806,-751.15,0.00020273,2]
[356935213,1743439841816,-2278.7,0.00020273,2]
[356935214,1743439841826,-629.91,0.00020273,2]
[356935215,1743439841836,-500.0,0.00020273,2]
[356935216,1743439841846,-500.0,0.00020273,2]
[356935217,1743439841857,-500.0,0.00020273,2]
[356935218,1743439841868,-500.0,0.00020273,2]
[356935219,1743439841878,-500.0,0.00020273,2]
[356935220,1743439841888,-1931.74,0.00020273,2]
[356935221,1743439841899,-525.53,0.00020273,2]
[356935222,1743439841912,-1408.56,0.00020273,2]
[356935223,1743439841923,-599.99,0.00020273,2]
[356935224,1743439841933,-3294.17,0.00020273,2]
[356935225,1743439841943,-826.29,0.00020273,2]
[356935226,1743439841956,-500.0,0.00020273,2]
[356935227,1743439841967,-500.0,0.00020273,2]
[356935228,1743439841976,-505.97,0.00020273,2]
[356935229,1743439841987,-500.0,0.00020273,2]
[356935230,1743439841997,-598.78,0.00020273,2]
[356935231,1743439842008,-500.0,0.00020273,2]
[356935232,1743439842018,-899.69,0.00020273,2]
[356935233,1743439842028,-746.5,0.00020273,2]
[356935234,1743439842040,-1550.45,0.00020273,2]
[356935235,1743439842050,-1308.45103778,0.00020348,2]
[356935236,1743439842060,-299.77488552,0.00020428,2]
[356935237,1743439842071,-3528.700625,0.00020482,9]
[356935238,1743439842081,-1000.0,0.00020492,5]
[356935239,1743439842092,-1000.0,0.000205,2]
[356935240,1743439842102,-500.0,0.00020547,2]
[356935241,1743439842112,-947.21,0.00020547,2]
[356935242,1743439842122,-500.0,0.00020547,2]
[356935243,1743439842132,-500.0,0.00020547,2]
[356935244,1743439842143,-453.12491108,0.00020547,2]
[356935245,1743439842213,-249.993024,0.00019295,7]
[356935275,1743439846485,-71312.70220787,0.0001876,2]
[356935276,1743439846498,-2604.73064177,0.0001876,2]
[356935290,1743440312909,176.523453,0.00013699,2]
[356935291,1743440328954,251.4,0.00014,2]
[356935308,1743441032647,-999.999999,0.00016,2]
[356935309,1743441032658,-1870.63221611,0.00017315,2]
[356935310,1743441032672,-1430.22569599,0.00017315,2]
[356935311,1743441032682,-171.3613985,0.00017635,2]
[356935312,1743441032692,-300.0,0.0001796,2]
[356935313,1743441032701,-500.0,0.00017961,2]
[356935314,1743441032711,-500.0,0.00017961,2]
[356935315,1743441032721,-452.44306684,0.00017961,2]
[356935316,1743441032731,-500.0,0.00017961,2]
[356935318,1743441032740,-500.0,0.00017961,2]
[356935319,1743441032749,-500.0,0.00017961,2]
[356935320,1743441032759,-560.87575009,0.00017961,2]
[356935321,1743441032768,-500.0,0.00017961,2]
[356935322,1743441032778,-500.0,0.00017961,2]
[356935323,1743441032787,-615.37669968,0.00017961,2]
[356935324,1743441032797,-24900.0,0.00017962,2]
[356935325,1743441032807,-238.73650232,0.0001866,2]
[356935326,1743441032816,-522.96147827,0.00018679,2]
[356935327,1743441032825,-65565.79666574,0.0001868,2]
[356935328,1743441032837,-8072.40535258,0.0001868,2]
[356935343,1743441038490,-10300.50000005,0.0001868,2]
[356935344,1743441038545,-11658.36238459,0.0001868,2]
[356935345,1743441038599,-820.68640775,0.0001868,2]
[356935393,1743441040859,-2008.69999985,0.0001868,2]
[356935399,1743441040914,-640.93008231,0.0001868,2]
[356935434,1743441043753,-2034.49170545,0.0001868,2]
[356935436,1743441043806,-5477.4000003,0.0001868,2]
[356935438,1743441043817,-49479.34033947,0.0001868,2]
[356935440,1743441043829,-302.0,0.0001868,2]
[356935460,1743441046644,-9624.76892481,0.0001868,2]
[356935461,1743441046704,-56261.98017558,0.0001868,2]
[356935462,1743441046752,-57632.92321482,0.0001868,2]
[356935463,1743441046762,-151.0,0.00018796,2]
[356935464,1743441046772,-200.0,0.00018796,2]
[356935465,1743441046782,-381.08059881,0.00018861,2]
[356935466,1743441046791,-1364.27624129,0.000189,2]
[356935467,1743441046801,-40014.00181705,0.00019,2]
[356935468,1743441046811,-500.0,0.00019178,2]
[356935469,1743441046820,-500.0,0.00019178,2]
[356935470,1743441046830,-500.0,0.00019178,2]
[356935471,1743441046840,-500.0,0.00019178,2]
[356935472,1743441046850,-500.0,0.00019178,2]
[356935473,1743441046861,-613.4,0.00019178,2]
[356935474,1743441046871,-1711.92,0.00019178,2]
[356935475,1743441046880,-500.0,0.00019178,2]
[356935476,1743441046890,-500.0,0.00019178,2]
[356935477,1743441046899,-594.66,0.00019178,2]
[356935478,1743441046910,-500.0,0.00019178,2]
[356935479,1743441046920,-500.0,0.00019178,2]
[356935480,1743441046931,-500.0,0.00019178,2]
[356935481,1743441046941,-1803.97,0.00019178,2]
[356935482,1743441046951,-500.0,0.00019178,2]
[356935483,1743441046961,-500.0,0.00019178,2]
[356935484,1743441046970,-500.0,0.00019178,2]
[356935485,1743441046979,-500.0,0.00019178,2]
[356935486,1743441046990,-500.0,0.00019178,2]
[356935487,1743441047000,-500.0,0.00019178,2]
[356935488,1743441047009,-500.0,0.00019178,2]
[356935489,1743441047019,-500.0,0.00019178,2]
[356935490,1743441047030,-500.0,0.00019178,2]
[356935491,1743441047040,-500.0,0.00019178,2]
[356935492,1743441047050,-1529.3,0.00019178,2]
[356935493,1743441047060,-500.0,0.00019178,2]
[356935494,1743441047070,-500.0,0.00019178,2]
[356935495,1743441047083,-500.0,0.00019178,2]
[356935496,1743441047093,-710.4,0.00019178,2]
[356935497,1743441047102,-1115.11,0.00019178,2]
[356935498,1743441047112,-500.0,0.00019178,2]
[356935499,1743441047122,-500.0,0.00019178,2]
[356935500,1743441047132,-4234.44075,0.00019178,2]
[356935501,1743441047142,-500.0,0.00019178,2]
[356935502,1743441047361,-654.15,0.00019178,2]
[356935503,1743441047372,-590.98,0.00019178,2]
[356935504,1743441047387,-1209.35,0.00019178,2]
[356935505,1743441047397,-712.25,0.00019178,2]
[356935506,1743441047407,-500.0,0.00019178,2]
[356935507,1743441047416,-2607.89,0.00019178,2]
[356935508,1743441047427,-500.0,0.00019178,2]
[356935509,1743441047437,-500.0,0.00019178,2]
[356935510,1743441047446,-500.0,0.00019178,2]
[356935511,1743441047456,-868.9,0.00019178,2]
[356935512,1743441047469,-500.0,0.00019178,2]
[356935513,1743441047479,-656.17,0.00019178,2]
[356935514,1743441047488,-1227.44,0.00019178,2]
[356935515,1743441047498,-500.0,0.00019183,2]
[356935516,1743441047508,-8840.79100748,0.00019194,2]
[356935517,1743441047520,-2834.85599079,0.00019194,2]
[356935518,1743441379338,177.793262,0.00013699,2]
[356935555,1743442231817,-419.62357085,0.00016,2]
[356935556,1743442231828,-183.8430431,0.00016781,2]
[356935557,1743442231838,-250.0,0.00016937,2]
[356935558,1743442231849,-312.891741,0.00017633,2]
[356935559,1743442231859,-300.0,0.000177,2]
[356935560,1743442231868,-355.53322569,0.00017701,2]
[356935561,1743442231878,-366.07316818,0.00017701,2]
[356935562,1743442231888,-500.0,0.00017701,2]
[356935563,1743442231898,-267.72047701,0.00017701,2]
[356935564,1743442231907,-500.0,0.00017701,2]
[356935565,1743442231917,-500.0,0.00017701,2]
[356935566,1743442231927,-500.0,0.00017701,2]
[356935567,1743442231937,-500.0,0.00017701,2]
[356935568,1743442231947,-24900.0,0.00017702,2]
[356935569,1743442231956,-2898.3801732,0.00017761,2]
[356935570,1743442231966,-800.70358502,0.0001786,2]
[356935571,1743442231976,-5000.0,0.00017861,2]
[356935572,1743442231986,-466.82973767,0.00018325,2]
[356935573,1743442231996,-499.51802857,0.00018579,2]
[356935574,1743442232006,-6861.6347839,0.0001858,2]
[356935585,1743442237687,-1217.123,0.0001858,2]
[356935586,1743442237699,-361921.2422161,0.0001858,2]
[356935587,1743442237709,-151.0,0.00018796,2]
[356935588,1743442237720,-151.0,0.00018796,2]
[356935589,1743442237730,-151.0,0.00018796,2]
[356935590,1743442237744,-151.0,0.00018796,2]
[356935591,1743442237754,-151.0,0.00018796,2]
[356935592,1743442237764,-200.0,0.00018796,2]
[356935593,1743442237775,-1318.80036659,0.000189,2]
[356935594,1743442237785,-1151.0,0.00018953,7]
[356935595,1743442237795,-154.541343,0.00018965,3]
[356935596,1743442237805,-500.0,0.00019178,2]
[356935597,1743442237816,-500.0,0.00019178,2]
[356935598,1743442237826,-493.6682333,0.00019178,2]
[356935599,1743442237836,-500.0,0.00019178,2]
[356935600,1743442237847,-500.0,0.00019178,2]
[356935601,1743442237856,-453.20894261,0.00019178,2]
[356935602,1743442237868,-46.79105739,0.00019178,2]
[356935603,1743442237878,-680.8,0.00019178,2]
[356935604,1743442237888,-500.0,0.00019178,2]
[356935605,1743442237898,-500.0,0.00019178,2]
[356935606,1743442237909,-1068.65,0.00019178,2]
[356935607,1743442237919,-500.0,0.00019178,2]
[356935608,1743442237930,-566.36,0.00019178,2]
[356935609,1743442237940,-500.0,0.00019178,2]
[356935610,1743442237949,-682.58,0.00019178,2]
[356935611,1743442237959,-626.89,0.00019178,2]
[356935612,1743442237969,-1158.96,0.00019178,2]
[356935613,1743442237978,-1978.55,0.00019178,2]
[356935614,1743442237988,-500.0,0.00019178,2]
[356935615,1743442237998,-500.0,0.00019178,2]
[356935616,1743442238008,-628.83,0.00019178,2]
[356935617,1743442238018,-1176.29,0.00019178,2]
[356935618,1743442238028,-587.84,0.00019178,2]
[356935619,1743442238038,-1640.59,0.00019178,2]
[356935620,1743442238048,-500.0,0.00019178,2]
[356935621,1743442238058,-832.69,0.00019178,2]
[356935622,1743442238068,-364.33781356,0.00019178,2]
[356935623,1743442238078,-500.0,0.00019178,2]
[356935624,1743442238088,-500.0,0.00019178,2]
[356935625,1743442238098,-500.0,0.00019178,2]
[356935626,1743442238107,-569.88,0.00019178,2]
[356935627,1743442238117,-500.0,0.00019178,2]
[356935628,1743442238127,-500.0,0.00019178,2]
[356935629,1743442238136,-500.0,0.00019178,2]
[356935630,1743442238146,-500.0,0.00019178,2]
[356935631,1743442238155,-500.0,0.00019178,2]
[356935632,1743442238164,-1728.8,0.00019178,2]
[356935633,1743442238174,-500.0,0.00019178,2]
[356935634,1743442238183,-500.0,0.00019178,2]
[356935635,1743442238193,-1465.57,0.00019178,2]
[356935636,1743442238202,-290.78259206,0.00019178,2]
[356935637,1743442238212,-500.0,0.00019178,2]
[356935638,1743442238221,-500.0,0.00019178,2]
[356935639,1743442238231,-500.0,0.00019178,2]
[356935640,1743442238240,-500.0,0.00019178,2]
[356935641,1743442238249,-500.0,0.00019178,2]
[356935642,1743442238259,-4022.718712,0.00019178,2]
[356935643,1743442238268,-500.0,0.00019178,2]
[356935644,1743442238278,-835.65699134,0.00019187,2]
[356935645,1743442238287,-160.0,0.00019187,2]
[356935646,1743442238296,-418.85542,0.00019187,2]
[356935647,1743442238306,-1751.38728086,0.00019187,2]
[356935648,1743442238316,-4022.718712,0.00019272,3]
[356935649,1743442238327,-500.0,0.00019275,2]
[356935650,1743442238337,-150.0,0.00019308,2]
[356935651,1743442238347,-542.0,0.00019308,2]
[356935652,1743442238358,-401.0,0.00019308,2]
[356935653,1743442238368,-420.0,0.00019318,2]
[356935654,1743442238377,-500.0,0.00019396,2]
[356935655,1743442238386,-500.0,0.00019427,2]
[356935656,1743442238396,-183.67877057,0.00019436,2]
[356935657,1743442238406,-500.0,0.00019436,2]
[356935658,1743442238417,-500.0,0.00019436,2]
[356935659,1743442238426,-500.0,0.00019441,2]
[356935660,1743442238435,-1318.8003664,0.00019452,2]
[356935661,1743442238445,-500.0,0.00019452,2]
[356935662,1743442238454,-500.0,0.00019452,2]
[356935663,1743442238464,-500.0,0.00019452,2]
[356935664,1743442238474,-500.0,0.00019452,2]
[356935665,1743442238483,-500.0,0.00019452,2]
[356935666,1743442238493,-680.8,0.00019452,2]
[356935667,1743442238502,-500.0,0.00019452,2]
[356935668,1743442238512,-500.0,0.00019452,2]
[356935669,1743442238522,-1068.65,0.00019452,2]